Workbook

Sheet Hoja1 (hidden)
H5: Hospital General de Especialidades Dr. Mario Tolentino Dipp
H8: Gerencia de Estadística
H10: Consolidado Trimestral Enero - Marzo 2024
H13: Servicios brindados | J13: Primer Trimestre 2024 | M13: Total trimestre
J14: Enero | K14: Febrero | L14: Marzo
H15: Consultas | I15: Alergologia | M15: =J15+K15+L15 -> 0
I16: Anestesiologia y reanimacion | M16: =J16+K16+L16 -> 0
I17: Cardiologia | M17: 0
I18: Cirugia Pediatrica | M18: 0
I19: Cirugia Plastica-Reparadora | M19: 0
I20: Cirugía Maxilo-facial | M20: =J20+K20+L20 -> 0
I21: Dermatologia | M21: 0
I22: Endocrinologia | M22: 0
I23: Fisioterapia | M23: 0
I24: Gastroenterologia | M24: 0
I25: Genética | M25: 0
I26: Ginecología | M26: 0
I27: Hematologia | M27: 0
I28: Infectología | M28: 0
I29: Nefrologia | M29: 0
I30: Neonatología | M30: 0
I31: Neurocirugia | M31: 0
I32: Neurologia | M32: 0
I33: Neumologia | M33: 0
I34: Nutrición | M34: 0
I35: Odontologia | M35: =J36+K36+L35 -> 0
I36: Oncologia | M36: =J37+K37+L36 -> 0
I37: Ortopedia | M37: =J38+K38+L37 -> 0
I38: Otorrinolaringologia | M38: 0
I39: Pediatria | M39: 0
I40: Psicologia | M40: 0
I41: Urologia | M41: 0
I42: Otras | M42: 0
H43: Subtotal consultas | J43: =SUM(J15:J42) -> 0 | K43: =SUM(K16:K42) -> 0 | L43: =SUM(L15:L42) -> 0 | M43: =+J43+K43+L43 -> 0
H44: Emergencias | M44: =+J44+K44+L44 -> 0
H45: Hospitalizaciones | M45: =+J45+K45+L45 -> 0
H46: Total de servicios | J46: =SUM(J43:J45) -> 0 | K46: =SUM(K43:K45) -> 0 | L46: =SUM(L43:L45) -> 0 | M46: =+J46+K46+L46 -> 0
H48: Otros servicios | J48: Primer Trimestre 2024 | M48: Total trimestre
J49: Enero | K49: Febrero | L49: Marzo
H50: Pruebas de Laboratorio | M50: =SUM(J50:L50) -> 0
H51: Estudios de Imágenes | M51: 0
H52: Evaluaciones Cardiológicas | M52: 0
H53: Procedimientos Quirúrgicos | M53: 0
H54: Endoscopías | M54: 0
H55: Subtotal otros servicios | J55: =SUM(J50:J54) -> 0 | K55: =SUM(K50:K54) -> 0 | L55: =SUM(L50:L54) -> 0 | M55: 0
I59: Lucero Lopez-Penha | L59: Ginssellys Vasquez
I60: Analista de Estadísticas | L60: Subdirector Planificación

Sheet 4to trimestre
C1: Hospital General de Especialidades Dr. Mario Tolentino Dipp
B2: Gerencia de Estadística
B3: Consolidado Trimestral Octubre - Diciembre 2024
B6: Servicios brindados | E6: Cuarto Trimestre 2024 | H6: Total trimestre
E7: Octubre | F7: Noviembre | G7: Diciembre
B8: Consulta | C8: Alergologia | E8: 0 | F8: 0 | G8: 0 | H8: =SUM(E8:G8) -> 0
C9: Anestesiologia y reanimación | E9: 26 | F9: 49 | G9: 43 | H9: =SUM(E9:G9) -> 118
C10: Cardiologia | E10: 308 | F10: 199 | G10: 329 | H10: 836
C11: Cirugia Pediatrica | E11: 0 | F11: 0 | G11: 0 | H11: 0
C12: Cirugia Plastica-Reparadora | E12: 21 | F12: 45 | G12: 37 | H12: 103
C13: Cirugía Maxilo-facial | E13: 0 | F13: 0 | G13: 0 | H13: 0
C14: Dermatologia | E14: 110 | F14: 57 | G14: 92 | H14: 259
C15: Endocrinologia | E15: 0 | F15: 0 | G15: 0 | H15: 0
C16: Fisioterapia | E16: 0 | F16: 0 | G16: 0 | H16: 0
C17: Gastroenterologia | E17: 305 | F17: 254 | G17: 295 | H17: 854
C18: Genética | E18: 0 | F18: 0 | G18: 0 | H18: 0
C19: Ginecología | E19: 211 | F19: 177 | G19: 168 | H19: 556
C20: Hematologia | E20: 58 | F20: 75 | G20: 66 | H20: 199
C21: Infectología | E21: 0 | F21: 0 | G21: 0 | H21: 0
C22: Nefrologia | E22: 98 | F22: 100 | G22: 105 | H22: 303
C23: Neonatología | E23: 0 | F23: 0 | G23: 0 | H23: 0
C24: Neurocirugia | E24: 0 | F24: 0 | G24: 0 | H24: 0
C25: Neurologia | E25: 214 | F25: 228 | G25: 193 | H25: 635
C26: Neumologia | E26: 65 | F26: 126 | G26: 102 | H26: 293
C27: Nutrición | E27: 86 | F27: 45 | G27: 47 | H27: 178
C28: Odontologia | E28: 178 | F28: 173 | G28: 224 | H28: 575
C29: Oncologia | E29: 25 | F29: 27 | G29: 19 | H29: 71
C30: Ortopedia | E30: 0 | F30: 0 | G30: 0 | H30: 0
C31: Otorrinolaringologia | E31: 137 | F31: 138 | G31: 107 | H31: 382
C32: Pediatria | E32: 0 | F32: 0 | G32: 0 | H32: 0
C33: Psicologia | E33: 88 | F33: 63 | G33: 64 | H33: 215
C34: Urologia | E34: 203 | F34: 221 | G34: 184 | H34: 608
C35: Otras | E35: 2,601 | F35: 2,452 | G35: 1,610 | H35: 6663
B36: Subtotal consultas | E36: =SUM(E8:E35) -> 4,734 | F36: =SUM(F9:F35) -> 4,429 | G36: =SUM(G8:G35) -> 3,685 | H36: =+E36+F36+G36 -> 12,848
B37: Emergencias | E37: 3,687 | F37: 3,552 | G37: 3,400 | H37: =+E37+F37+G37 -> 10,639
B38: Hospitalizaciones | E38: 268 | F38: 253 | G38: 242 | H38: =+E38+F38+G38 -> 763
B39: Total de servicios | E39: =SUM(E36:E38) -> 8,689 | F39: =SUM(F36:F38) -> 8,234 | G39: =SUM(G36:G38) -> 7,327 | H39: =+E39+F39+G39 -> 24,250
B41: Otros servicios | D41: Primer Trimestre 2024 | G41: Total trimestre
D42: Octubre | E42: Noviembre | F42: Diciembre
B43: Pruebas de Laboratorio | D43: 24,858 | E43: 21,466 | F43: 21,001 | G43: =D43+E43+F43 -> 67,325
B44: Estudios de Imágenes | D44: 2,129 | E44: 3,648 | F44: 2,880 | G44: 8,657
B45: Evaluaciones Cardiológicas | D45: 180 | E45: 149 | F45: 176 | G45: 505
B46: Procedimientos Quirúrgicos | D46: 118 | E46: 120 | F46: 117 | G46: 355
B47: Endoscopías | D47: 0 | E47: 0 | F47: 0 | G47: 0
B48: Subtotal otros servicios | D48: =SUM(D43:D47) -> 27285 | E48: =SUM(E43:E47) -> 25,383 | F48: =SUM(F43:F47) -> 24,174 | G48: 76,842
C50: Noelia Cristina Núñez Puello | G50: Ginssellys Vasquez
C51: Técnico en datos estadísticos | G51: Representante de Planificación

Sheet anual (hidden)
C1: Hospital General de Especialidades Dr. Mario Tolentino Dipp
B2: Gerencia de Estadística
B3: Consolidado Trimestral Enero-Diciembre 2024
B4: Servicios brindados | E4: Trimestres 2024 | I4: Total trimestres
E5: 1ero | F5: 2do | G5: 3er | H5: 4to
B6: Consulta | C6: Alergologia | F6: 0 | G6: 0 | H6: 0 | I6: =SUM(E6:H6) -> 0
C7: Anestesiologia y reanimación | E7: 0 | F7: 52 | G7: 118 | H7: 118 | I7: =SUM(E7:H7) -> 288
C8: Cardiologia | E8: 1,273 | F8: 1,107 | G8: 801 | H8: 836 | I8: 4,017
C9: Cirugia Pediatrica | E9: 0 | F9: 0 | G9: 0 | H9: 0 | I9: 0
C10: Cirugia Plastica-Reparadora | E10: 0 | F10: 0 | G10: 125 | H10: 103 | I10: 228
C11: Cirugía Maxilo-facial | E11: 0 | F11: 0 | G11: 0 | H11: 0 | I11: 0
C12: Dermatologia | E12: 219 | F12: 250 | G12: 200 | H12: 259 | I12: 928
C13: Endocrinologia | E13: 0 | F13: 0 | G13: 0 | H13: 0 | I13: 0
C14: Fisioterapia | E14: 0 | F14: 0 | G14: 0 | H14: 0 | I14: 0
C15: Gastroenterologia | E15: 739 | F15: 749 | G15: 632 | H15: 854 | I15: 2,974
C16: Genética | E16: 0 | F16: 0 | G16: 0 | H16: 0 | I16: 0
C17: Ginecología | E17: 659 | F17: 594 | G17: 540 | H17: 556 | I17: 2,349
C18: Hematologia | E18: 285 | F18: 231 | G18: 224 | H18: 199 | I18: 939
C19: Infectología | E19: 0 | F19: 0 | G19: 0 | H19: 0 | I19: 0
C20: Nefrologia | E20: 411 | F20: 349 | G20: 341 | H20: 303 | I20: 1,404
C21: Neonatología | E21: 0 | F21: 0 | G21: 0 | H21: 0 | I21: 0
C22: Neurocirugia | E22: 0 | F22: 0 | G22: 0 | H22: 0 | I22: 0
C23: Neurologia | E23: 624 | F23: 579 | G23: 610 | H23: 635 | I23: 2,448
C24: Neumologia | E24: 849 | F24: 729 | G24: 416 | H24: 293 | I24: 2,287
C25: Nutrición | E25: 0 | F25: 283 | G25: 315 | H25: 178 | I25: 776
C26: Odontologia | E26: 61 | F26: 59 | G26: 90 | H26: 575 | I26: 785
C27: Oncologia | E27: 0 | F27: 0 | G27: 6 | H27: 71 | I27: 77
C28: Ortopedia | E28: 0 | F28: 0 | G28: 0 | H28: 0 | I28: 0
C29: Otorrinolaringologia | E29: 37 | F29: 152 | G29: 321 | H29: 382 | I29: 892
C30: Pediatria | E30: 0 | F30: 0 | G30: 0 | H30: 0 | I30: 0
C31: Psicologia | E31: 173 | F31: 231 | G31: 195 | H31: 215 | I31: 814
C32: Urologia | E32: 430 | F32: 388 | G32: 534 | H32: 608 | I32: 1,960
C33: Otras | E33: 5,742 | F33: 5,313 | G33: 7060 | H33: 6,663 | I33: 24,778
B34: Subtotal consultas | E34: 11,502 | F34: 11,066 | G34: 13,352 | H34: 12,848 | I34: =SUM(E34:H34) -> 48,768
B35: Emergencias | E35: 6,070 | F35: 5,895 | G35: 7,097 | H35: 10,639 | I35: =SUM(E35:H35) -> 29,701
B36: Hospitalizaciones | E36: 284 | F36: 383 | G36: 541 | H36: 763 | I36: =SUM(E36:H36) -> 1,971
B37: Total de servicios | E37: 17,856 | F37: 17,344 | G37: 20,990 | H37: 24,249 | I37: =SUM(E37:H37) -> 80,439
B39: Otros servicios | D39: Primer Trimestre 2024 | H39: Total trimestres
D40: 1ero | E40: 2do | F40: 3er | G40: 4to
B41: Pruebas de Laboratorio | D41: 45,019 | E41: 52,980 | F41: 62,307 | G41: 67,325 | H41: =D41+E41+F41+G41 -> 227,631
B42: Estudios de Imágenes | D42: 40,381 | E42: 6,199 | F42: 5,467 | G42: 8,657 | H42: =D42+E42+F42+G42 -> 60,704
B43: Evaluaciones Cardiológicas | D43: 670 | E43: 653 | F43: 883 | G43: 505 | H43: =D43+E43+F43+G43 -> 2,711
B44: Procedimientos Quirúrgicos | D44: 0 | E44: 50 | F44: 171 | G44: 355 | H44: =D44+E44+F44+G44 -> 576
B45: Endoscopías | D45: 0 | E45: 0 | F45: 0 | G45: 0 | H45: =D45+E45+F45 -> 0
B46: Subtotal otros servicios | D46: 86,070 | E46: 59,882 | F46: =SUM(F41:F45) -> 68,828 | G46: =SUM(G41:G45) -> 76,842 | H46: =D46+E46+F46+G46 -> 291,622
C49: Noelia Cristina Núñez Puello | G49: Ginssellys Vasquez
C50: Técnico en datos estadísticos | G50: Representante de Planificación
